[Event "BL 2017-18"]
[Site "Germany"]
[Date "2018.02.24"]
[Round "9"]
[White "Fedorovsky, Michael"]
[Black "Hracek, Zbynek"]
[Result "*"]
[ECO "E00"]
[WhiteElo "2469"]
[BlackElo "2583"]
[Annotator "ChessBase"]
[PlyCount "31"]
[EventDate "2018.05.24"]
[EventType "team-tourn"]
[EventCountry "GER"]
[SourceTitle "playchess.com"]
[Source "ChessBase"]
[SourceQuality "1"]
[WhiteTeam "Bayern Muenchen"]
[BlackTeam "Werder Bremen"]
[TimeControl "40/6000+30:3000+30"]

1. d4 {[%emt 0:00:30]} Nf6 {[%emt 0:01:00]} 2. c4 {[%emt 0:00:00]} e6 {[%emt 0:00:00]} 3. g3 {[%emt 0:00:00]} Bb4+ {[%emt 0:00:00]} 4. Bd2 {[%emt 0:00:00]} a5 {[%emt 0:00:30]} 5. Bg2 {[%emt 0:00:00]} c5 {[%emt 0:03:30]} 6. d5 {[%emt 0:04:30]} exd5 {[%emt 0:02:30]} 7. cxd5 {[%emt 0:00:30]} O-O {[%emt 0:05:30]} 8. Nh3 {[%emt 0:14:30]} d6 {[%emt 0:00:30]} 9. O-O {[%emt 0:03:30]} Bxd2 {[%emt 0:06:30]} 10. Nxd2 {[%emt 0:09:30]} b5 {[%emt 0:05:30]} 11. a4 {[%emt 0:04:30]} b4 {[%emt 0:07:30]} 12. Nc4 {[%emt 0:10:30]} Ba6 {[%emt 0:00:30]} 13. Rc1 {[%emt 0:05:30]} Bxc4 {[%emt 0:06:30]} 14. Rxc4 {[%emt 0:00:00]} Nbd7 {[%emt 0:00:00]} 15. e4 {[%emt 0:17:00]} Re8 {[%emt 0:01:00]} 16. Re1 {[%emt 0:01:30]} *

[Event "BL 2017-18"]
[Site "Germany"]
[Date "2018.02.24"]
[Round "9"]
[White "Zpevak, Pavel"]
[Black "Thiede, Lars"]
[Result "1/2-1/2"]
[ECO "E61"]
[WhiteElo "2341"]
[BlackElo "2409"]
[Annotator "ChessBase"]
[PlyCount "120"]
[EventDate "2018.05.24"]
[EventType "team-tourn"]
[EventCountry "GER"]
[SourceTitle "playchess.com"]
[Source "ChessBase"]
[SourceQuality "1"]
[WhiteTeam "Schwaebisch Hall"]
[BlackTeam "SFR Berlin"]
[TimeControl "40/6000+30:3000+30"]

1. d4 {[%emt 0:00:00]} g6 {[%emt 0:00:15]} 2. c4 {[%emt 0:00:16]} Nf6 {[%emt 0:00:09]} 3. Nc3 {[%emt 0:00:35]} Bg7 {[%emt 0:00:38]} 4. Nf3 {[%emt 0:01:03]} O-O {[%emt 0:00:27]} 5. Bg5 {[%emt 0:00:36]} c5 {[%emt 0:03:04]} 6. e3 {[%emt 0:01:13]} cxd4 {[%emt 0:00:53]} 7. Nxd4 {[%emt 0:01:51]} Qa5 {[%emt 0:03:15]} 8. Bxf6 {[%emt 0:00:30]} Bxf6 {[%emt 0:02:53]} 9. Be2 {[%emt 0:02:54]} Nc6 {[%emt 0:02:42]} 10. O-O {[%emt 0:09:11]} Nxd4 {[%emt 0:13:21]} 11. exd4 {[%emt 0:00:10]} Qb6 {[%emt 0:03:56]} 12. Nd5 {[%emt 0:55:07]} Qxb2 {[%emt 0:03:53]} 13. Bf3 {[%emt 0:06:54]} d6 {[%emt 0:19:34]} 14. Nxf6+ {[%emt 0:21:44]} exf6 {[%emt 0:02:35]} 15. c5 {[%emt 0:01:09]} dxc5 {[%emt 0:23:24]} 16. dxc5 {[%emt 0:00:09]} Qe5 {[%emt 0:00:48]} 17. Rc1 {[%emt 0:01:14]} Rb8 {[%emt 0:03:35]} 18. Re1 {[%emt 0:01:30]} Qc7 {[%emt 0:04:54]} 19. Qd4 {[%emt 0:00:43]} Qd8 {[%emt 0:00:59]} 20. Qa4 {[%emt 0:00:42]} a6 {[%emt 0:01:30]} 21. Red1 {[%emt 0:00:44]} Qe7 {[%emt 0:01:31]} 22. Qa5 {[%emt 0:01:16]} Be6 {[%emt 0:06:42]} 23. Rd2 {[%emt 0:00:10]} Rfc8 {[%emt 0:01:17]} 24. Qb6 {[%emt 0:01:13]} Rc7 {[%emt 0:04:53]} 25. g3 {[%emt 0:00:36]} Rbc8 {[%emt 0:02:25]} 26. Rdc2 {[%emt 0:00:07]} Qd7 {[%emt 0:01:02]} 27. a3 {[%emt 0:00:43]} Qb5 {[%emt 0:00:24]} 28. Qxb5 {[%emt 0:00:42]} axb5 {[%emt 0:00:06]} 29. c6 {[%emt 0:00:27]} bxc6 {[%emt 0:00:27]} 30. Rxc6 {[%emt 0:00:10]} Rxc6 {[%emt 0:02:28]} 31. Rxc6 {[%emt 0:00:01]} Rd8 {[%emt 0:00:18]} 32. Rc2 {[%emt 0:01:21]} Rd3 {[%emt 0:01:24]} 33. Be2 {[%emt 0:00:20]} Rb3 {[%emt 0:00:19]} 34. Rc5 {[%emt 0:00:57]} Bd7 {[%emt 0:00:27]} 35. Rc7 {[%emt 0:00:15]} Bh3 {[%emt 0:00:08]} 36. f3 {[%emt 0:00:26]} Rb2 {[%emt 0:00:51]} 37. Kf2 {[%emt 0:00:13]} Be6 {[%emt 0:00:04]} 38. Ke3 {[%emt 0:00:12]} Rb3+ {[%emt 0:00:17]} 39. Kf2 {[%emt 0:00:05]} Kg7 {[%emt 0:00:33]} 40. Rb7 {[%emt 0:00:59]} Rxa3 {[%emt 0:50:34]} 41. Rxb5 {[%emt 0:50:43]} Ra2 {[%emt 0:00:08]} 42. Rb4 {[%emt 0:00:45]} g5 {[%emt 0:01:30]} 43. Rd4 {[%emt 0:00:49]} Bc8 {[%emt 0:00:00]} 44. Ke3 {[%emt 0:00:00]} h6 {[%emt 0:00:00]} 45. Rd2 {[%emt 0:00:00]} Ra3+ {[%emt 0:00:00]} 46. Rd3 {[%emt 0:00:00]} Ra5 {[%emt 0:00:00]} 47. Rd2 {[%emt 0:00:00]} Ba6 {[%emt 0:00:00]} 48. Bxa6 {[%emt 0:00:00]} Rxa6 {[%emt 0:00:00]} 49. Kf2 {[%emt 0:00:00]} f5 {[%emt 0:00:00]} 50. Kg2 {[%emt 0:00:00]} Ra3 {[%emt 0:00:00]} 51. Rc2 {[%emt 0:00:00]} h5 {[%emt 0:00:00]} 52. Rf2 {[%emt 0:00:00]} Kg6 {[%emt 0:00:00]} 53. f4 {[%emt 0:00:00]} f6 {[%emt 0:00:00]} 54. h4 {[%emt 0:00:00]} Rb3 {[%emt 0:00:00]} 55. fxg5 {[%emt 0:00:00]} fxg5 {[%emt 0:00:00]} 56. hxg5 {[%emt 0:00:00]} Kxg5 {[%emt 0:00:00]} 57. Rf4 {[%emt 0:00:00]} Re3 {[%emt 0:00:00]} 58. Rb4 {[%emt 0:00:00]} Re4 {[%emt 0:00:00]} 59. Rb8 {[%emt 0:00:00]} h4 {[%emt 0:00:00]} 60. Rg8+ {[%emt 0:00:00]} Kf6 {[%emt 0:00:00]} 1/2-1/2

[Event "BL 2017-18"]
[Site "Germany"]
[Date "2018.02.25"]
[Round "10"]
[White "Moehn, Hans"]
[Black "Zpevak, Pavel"]
[Result "1/2-1/2"]
[ECO "A11"]
[WhiteElo "2365"]
[BlackElo "2341"]
[Annotator "NA"]
[PlyCount "114"]
[EventDate "2018.05.24"]
[EventType "team-tourn"]
[EventCountry "GER"]
[SourceTitle "playchess.com"]
[Source "ChessBase"]
[SourceQuality "1"]
[WhiteTeam "Dresden"]
[BlackTeam "Schwaebisch Hall"]
[TimeControl "40/6000+30:3000+30"]

1. Nf3 {[%emt 0:00:00]} Nf6 {[%emt 0:00:17]} 2. g3 {[%emt 0:00:00]} d5 {[%emt 0:00:47]} 3. Bg2 {[%emt 0:00:00]} c6 {[%emt 0:00:27]} 4. O-O {[%emt 0:00:00]} Bf5 {[%emt 0:00:20]} 5. c4 {[%emt 0:00:02]} e6 {[%emt 0:01:20]} 6. cxd5 {[%emt 0:00:07]} exd5 {[%emt 0:02:00]} 7. d3 {[%emt 0:00:07]} Be7 {[%emt 0:00:34]} 8. Qb3 {[%emt 0:00:12] A11: Reti-Eröffnung} Qb6 {[%emt 0:03:47]} 9. Qc2 {[%emt 0:00:07]} Qc5 {[%emt 0:03:55]} 10. Qa4 $146 {[%emt 0:07:40]} ({Vorgänger:} 10. Nc3 Nbd7 11. b4 Qb6 12. e4 dxe4 13. dxe4 Bg6 14. Be3 Qxb4 15. Rab1 Qc4 {½-½ (52) Meier,G (2656)-Braun,A (2563) Germany 2015}) 10... Qb4 {[%emt 0:09:03]} 11. Qxb4 {[%emt 0:01:51]} Bxb4 {[%emt 0:00:21]} 12. Nc3 {[%emt 0:01:16]} O-O {[%emt 0:09:58]} 13. Bf4 {[%emt 0:29:01]} Re8 {[%emt 0:06:39]} 14. a3 {[%emt 0:00:45]} Bf8 {[%emt 0:04:57]} 15. b4 {[%emt 0:01:04]} a6 {[%emt 0:05:48]} 16. Nd4 {[%emt 0:03:17]} Bc8 {[%emt 0:02:24]} 17. Nb3 {[%emt 0:05:49]} Nbd7 {[%emt 0:04:35]} 18. Rfe1 {[%emt 0:06:07]} h6 {[%emt 0:08:36]} 19. Rab1 {[%emt 0:05:35]} g6 $14 {[%emt 0:10:46]} 20. Be3 {[%emt 0:02:23]} Bg7 {[%emt 0:06:28]} 21. Bd4 {[%emt 0:01:30]} Nf8 {[%emt 0:03:29]} 22. Na4 {[%emt 0:06:14]} N6d7 {[%emt 0:03:52]} 23. Bxg7 {[%emt 0:08:11]} Kxg7 {[%emt 0:00:12]} 24. Kf1 {[%emt 0:00:42]} Rb8 {[%emt 0:07:00]} 25. Rec1 {[%emt 0:00:44]} Nf6 {[%emt 0:02:17]} 26. Nc3 {[%emt 0:02:54]} Ne6 {[%emt 0:02:16]} 27. a4 {[%emt 0:06:45]} Bd7 {[%emt 0:06:01]} 28. b5 {[%emt 0:05:09]} cxb5 {[%emt 0:00:32]} 29. axb5 {[%emt 0:02:35]} d4 {[%emt 0:00:32]} 30. bxa6 {[%emt 0:01:18]} bxa6 {[%emt 0:01:53]} 31. Nd5 {[%emt 0:01:38]} Rb5 {[%emt 0:00:51]} 32. Nxf6 {[%emt 0:02:06]} Kxf6 {[%emt 0:00:07]} 33. Nd2 {[%emt 0:00:14]} Rxb1 {[%emt 0:01:33]} 34. Rxb1 {[%emt 0:00:09]} Bb5 {[%emt 0:00:25]} 35. Bd5 {[%emt 0:03:47]} Rc8 {[%emt 0:02:07]} 36. Bc4 {[%emt 0:00:20]} Bxc4 {[%emt 0:01:35]} 37. Nxc4 {[%emt 0:00:02]} Rc6 {[%emt 0:00:29]} 38. Kg2 {[%emt 0:05:31]} Ke7 {[%emt 0:00:36]} 39. h4 {[%emt 0:01:43]} Nc7 {[%emt 0:00:29]} 40. Rb8 {[%emt 0:02:06]} Rc5 {[%emt 0:50:30]} 41. f4 {[%emt 0:09:11]} Rb5 {[%emt 0:00:00]} 42. Rc8 {[%emt 0:00:21]} Kd7 {[%emt 0:00:00]} 43. Rh8 {[%emt 0:05:11]} a5 {[%emt 0:00:00]} 44. Rh7 {[%emt 0:02:32]} Ke6 {[%emt 0:00:00]} 45. Rxh6 {[%emt 0:00:44]} a4 {[%emt 0:00:00]} 46. g4 {[%emt 0:02:33]} Kf6 {[%emt 0:00:00]} 47. Rh7 {[%emt 0:04:24]} Rc5 {[%emt 0:00:00]} 48. h5 {[%emt 0:11:20]} Ne6 {[%emt 0:00:00]} 49. Kf3 {[%emt 0:07:18]} gxh5 {[%emt 0:00:57]} 50. Rh6+ {[%emt 0:09:03]} Kg7 {[%emt 0:00:26]} 51. Rxh5 {[%emt 0:01:21]} Rxh5 {[%emt 0:00:15]} 52. gxh5 {[%emt 0:00:02]} f5 {[%emt 0:00:37]} 53. e4 {[%emt 0:01:54]} dxe3 {[%emt 0:00:11]} 54. Kxe3 {[%emt 0:00:02]} Kh6 {[%emt 0:02:18]} 55. d4 {[%emt 0:00:02]} Nc7 {[%emt 0:00:54]} 56. Kd3 {[%emt 0:00:46]} Nd5 {[%emt 0:00:29]} 57. Nd6 {[%emt 0:00:31]} Nxf4+ {[%emt 0:00:36] Ke4} 1/2-1/2

[Event "BL 2017-18"]
[Site "Germany"]
[Date "2018.02.25"]
[Round "10"]
[White "Rafiee, Makan"]
[Black "Zwirs, Nico"]
[Result "0-1"]
[ECO "B99"]
[WhiteElo "2348"]
[BlackElo "2378"]
[Annotator "NA"]
[PlyCount "66"]
[EventDate "2018.05.24"]
[EventType "team-tourn"]
[EventCountry "GER"]
[SourceTitle "playchess.com"]
[Source "ChessBase"]
[SourceQuality "1"]
[WhiteTeam "Bayern Muenchen"]
[BlackTeam "Muelheim"]
[TimeControl "40/6000+30:3000+30"]

1. e4 {[%emt 0:00:30]} c5 {[%emt 0:01:00]} 2. Nf3 {[%emt 0:00:00]} d6 {[%emt 0:00:00]} 3. d4 {[%emt 0:00:00]} cxd4 {[%emt 0:00:00]} 4. Nxd4 {[%emt 0:00:00]} Nf6 {[%emt 0:00:00]} 5. Nc3 {[%emt 0:00:00]} a6 {[%emt 0:00:00]} 6. Bg5 {[%emt 0:00:30]} e6 {[%emt 0:00:30]} 7. f4 {[%emt 0:00:00]} Be7 {[%emt 0:00:30]} 8. Qf3 {[%emt 0:00:00]} Qc7 {[%emt 0:00:30]} 9. O-O-O {[%emt 0:00:30]} Nbd7 {[%emt 0:00:00]} 10. Bd3 {[%emt 0:00:00]} h6 {[%emt 0:00:00]} 11. Qh3 {[%emt 0:01:00]} b5 {[%emt 0:14:30] B99: Sicilian Najdorf: 6 Bg5 e6 7 f4 Be7 8 Qf3 Qc7 9 0-0-0 Nbd7} (11... Nb6 12. f5 e5 13. Nb3 Bd7 14. Rhe1 O-O-O 15. Bxf6 Bxf6 16. Nd5 Nxd5 17. exd5 Kb8 18. Kb1 Qb6 19. Qf3 a5 20. Re4 {1-0 (30) Naiditsch,A (2674)-Bologan,V (2690) Sibenik 2010}) 12. e5 {[%emt 0:07:30]} dxe5 {[%emt 0:01:30]} 13. Nxe6 {[%emt 0:00:00]} fxe6 {[%emt 0:05:30]} 14. Bg6+ {[%emt 0:00:00]} Kd8 {[%emt 0:00:30]} 15. Bxf6 {[%emt 0:01:30]} gxf6 {[%emt 0:30:30]} 16. Qxe6 {[%emt 0:00:30]} Rb8 $1 {[%emt 0:00:00]} 17. Nd5 $146 {[%emt 0:42:30]} ({Predecessor:} 17. Ne4 Rb6 18. Qh3 Bb7 19. Bf5 {½-½ (66) Librelato,K (1826)-Cosme Contreras,T (1667) Barrancabermeja 2015}) 17... Qd6 {[%emt 0:01:00]} 18. Qf7 {[%emt 0:01:30]} Rf8 {[%emt 0:04:30]} ({Aber nicht} 18... exf4 $2 19. Qg7 $18) 19. Qg7 {[%emt 0:00:30]} f5 {[%emt 0:10:30]} 20. Rd2 $14 {[%emt 0:17:30]} e4 {[%emt 0:26:59]} 21. Rhd1 {[%emt 0:00:00]} Rb7 {[%emt 0:01:46]} 22. Qh7 {[%emt 0:14:00]} Qe6 {[%emt 0:01:51]} 23. g4 {[%emt 0:01:30]} fxg4 {[%emt 0:04:07]} 24. Bxe4 {[%emt 0:00:30]} Bd6 {[%emt 0:01:21]} 25. Kb1 {[%emt 0:08:54]} Nc5 {[%emt 0:00:51]} 26. Nc7 {[%emt 0:00:41]} Rxc7 {[%emt 0:01:24]} 27. Rxd6+ {[%emt 0:00:06]} Rd7 {[%emt 0:00:09]} 28. Rxd7+ {[%emt 0:03:14]} Bxd7 {[%emt 0:00:23]} 29. Bd5 {[%emt 0:00:53]} Qf6 {[%emt 0:00:20]} 30. Bg8 {[%emt 0:04:00]} Qe7 {[%emt 0:01:24]} 31. Qg6 {[%emt 0:00:16]} Kc7 {[%emt 0:00:41]} 32. Bd5 {[%emt 0:01:36]} Rxf4 {[%emt 0:00:48]} 33. Qxh6 {[%emt 0:00:35]} Qf6 {[%emt 0:00:21]} 0-1

[Event "BL 2017-18"]
[Site "Germany"]
[Date "2018.02.25"]
[Round "10"]
[White "Mager, Denis"]
[Black "Braun, Christian"]
[Result "0-1"]
[ECO "D85"]
[WhiteElo "2277"]
[BlackElo "2378"]
[Annotator "NA"]
[PlyCount "80"]
[EventDate "2018.05.24"]
[EventType "team-tourn"]
[EventCountry "GER"]
[SourceTitle "playchess.com"]
[Source "ChessBase"]
[SourceQuality "1"]
[WhiteTeam "Speyer"]
[BlackTeam "Aachen"]
[TimeControl "40/6000+30:3000+30"]

1. c4 {[%emt 0:00:00]} Nf6 {[%emt 0:00:07]} 2. Nc3 {[%emt 0:00:00]} g6 {[%emt 0:00:06]} 3. d4 {[%emt 0:00:00]} d5 {[%emt 0:00:05]} 4. cxd5 {[%emt 0:00:37]} Nxd5 {[%emt 0:00:08]} 5. Bd2 {[%emt 0:00:45]} Nb6 {[%emt 0:02:42]} 6. Bg5 {[%emt 0:01:56]} Bg7 {[%emt 0:00:36]} 7. e3 {[%emt 0:03:59]} c5 {[%emt 0:00:53] D85: Exchange Grünfeld: Unusual White 7th moves and lines with 7 Nf3} 8. dxc5 {[%emt 0:02:34]} Bxc3+ {[%emt 0:00:20]} 9. bxc3 {[%emt 0:00:06]} Qxd1+ {[%emt 0:00:07]} 10. Rxd1 {[%emt 0:01:06]} N6d7 {[%emt 0:00:10]} 11. Bb5 {[%emt 0:09:57]} (11. e4 Nxc5 12. f3 b6 13. h4 f6 14. Be3 Nbd7 15. Bb5 {½-½ (27) Stefansson,H (2581)-Swiercz,D (2656) Gjakova 2016}) 11... Nc6 {[%emt 0:00:24]} 12. Rd5 {[%emt 0:06:53]} f6 {[%emt 0:00:12]} 13. Bh6 {[%emt 0:02:35]} Nde5 $146 {[%emt 0:06:49]} ({Find the theoretical novelty and annotate with similar games:} 13... e6 14. Rd2 Ke7 15. e4 Nxc5 {½-½ (26) Alexandrova,O (2423)-Schut,L (2284) Porto Carras 2011}) 14. e4 {[%emt 0:04:54]} Be6 {[%emt 0:00:30]} 15. Nf3 {[%emt 0:21:08]} Kf7 {[%emt 0:03:50]} 16. Bxc6 {[%emt 0:04:19]} Nxf3+ {[%emt 0:01:50]} 17. gxf3 {[%emt 0:00:14]} bxc6 {[%emt 0:00:07]} 18. Rd2 {[%emt 0:03:42]} Bc4 {[%emt 0:01:26]} 19. Kd1 {[%emt 0:10:43]} Rhd8 {[%emt 0:01:13]} 20. a3 {[%emt 0:04:15]} Bd3 {[%emt 0:02:28]} 21. Bf4 {[%emt 0:10:56]} e5 {[%emt 0:02:01]} 22. Be3 {[%emt 0:00:05]} Rab8 {[%emt 0:00:07]} 23. Rxd3 {[%emt 0:00:20]} Rxd3+ {[%emt 0:00:06]} 24. Kc2 {[%emt 0:00:11]} Rd7 {[%emt 0:00:07]} 25. a4 {[%emt 0:01:57]} Rdb7 {[%emt 0:01:34]} 26. Bc1 {[%emt 0:00:49]} Ke6 {[%emt 0:01:09]} 27. Rd1 {[%emt 0:02:45]} Rd7 {[%emt 0:00:09]} 28. Re1 {[%emt 0:00:16]} g5 {[%emt 0:03:51]} 29. Rg1 {[%emt 0:02:33]} Rg8 $19 {[%emt 0:01:10]} 30. f4 {[%emt 0:01:08]} exf4 31. Bxf4 {[%emt 0:01:07]} f5 {[%emt 0:00:39]} 32. exf5+ {[%emt 0:01:39]} Kxf5 {[%emt 0:00:08]} 33. Bd6 {[%emt 0:01:32]} Re8 {[%emt 0:00:18]} 34. Kd3 {[%emt 0:01:08]} Rb7 {[%emt 0:01:22]} 35. Rg3 {[%emt 0:06:23]} Rb2 {[%emt 0:01:09]} 36. Rf3+ {[%emt 0:00:22]} Kg6 {[%emt 0:00:10]} 37. h3 {[%emt 0:02:08]} Ree2 {[%emt 0:01:50]} 38. Bg3 {[%emt 0:00:16]} h5 {[%emt 0:00:32]} 39. h4 {[%emt 0:00:35]} gxh4 {[%emt 0:00:20]} 40. Bxh4 {[%emt 0:00:17]} Rbd2+ {[%emt 0:50:09] Kd4} 0-1

[Event "BL 2017-18"]
[Site "Germany"]
[Date "2018.03.11"]
[Round "12"]
[White "Loxine, Jakov"]
[Black "Eichler, Christoph"]
[Result "1/2-1/2"]
[ECO "D35"]
[WhiteElo "2397"]
[BlackElo "2299"]
[Annotator "NA"]
[PlyCount "89"]
[EventDate "2018.05.24"]
[EventType "team-tourn"]
[EventCountry "GER"]
[SourceTitle "playchess.com"]
[Source "ChessBase"]
[SourceQuality "1"]
[WhiteTeam "Dresden"]
[BlackTeam "Zugzwang Muenchen"]
[TimeControl "40/6000+30:3000+30"]

1. c4 {[%emt 0:00:02]} e6 {[%emt 0:00:12]} 2. Nc3 {[%emt 0:00:06]} d5 {[%emt 0:00:12]} 3. d4 {[%emt 0:00:14]} Nf6 {[%emt 0:00:08]} 4. cxd5 {[%emt 0:00:13]} Nxd5 {[%emt 0:00:12] LiveBook: 607 Games} 5. e4 {[%emt 0:00:27]} Nxc3 {[%emt 0:00:07]} 6. bxc3 {[%emt 0:00:03]} c5 {[%emt 0:00:09]} 7. a3 {[%emt 0:01:20]} g6 {[%emt 0:01:13] D35: Queen's Gambit Declined: Exchange Variation} 8. Nf3 {[%emt 0:01:47]} Bg7 {[%emt 0:00:11]} 9. Bd3 $146 {[%emt 0:14:15]} ({Predecessor:} 9. Be2 cxd4 10. cxd4 Nc6 11. Be3 O-O 12. O-O b6 13. Qa4 Bb7 14. Rad1 Ne7 15. Bd3 {1-0 (57) Caruana,F (2807)-Dominguez Perez,L (2739) Saint Louis 2017}) 9... Nc6 {[%emt 0:09:52]} 10. e5 {[%emt 0:00:14]} cxd4 {[%emt 0:06:44]} 11. cxd4 {[%emt 0:00:05]} O-O {[%emt 0:00:40]} 12. Be4 {[%emt 0:03:04]} f6 {[%emt 0:08:04]} 13. exf6 {[%emt 0:01:17]} Bxf6 {[%emt 0:00:29]} 14. Be3 {[%emt 0:04:53]} Qa5+ {[%emt 0:08:45]} 15. Kf1 {[%emt 0:02:23]} Bd7 {[%emt 0:03:31]} 16. h4 {[%emt 0:04:21]} Ne7 {[%emt 0:06:16]} 17. h5 {[%emt 0:08:50]} g5 $11 {[%emt 0:06:36]} 18. h6 {[%emt 0:00:25]} Nf5 {[%emt 0:02:59]} 19. Bd2 {[%emt 0:33:05]} Qd8 {[%emt 0:09:01]} 20. Bb4 {[%emt 0:03:08]} Re8 {[%emt 0:17:29]} 21. Kg1 {[%emt 0:08:27]} a5 {[%emt 0:03:00]} 22. Bc3 {[%emt 0:02:23]} Rc8 {[%emt 0:00:39]} 23. Qd2 {[%emt 0:02:43]} Bc6 {[%emt 0:04:38]} 24. Bxa5 {[%emt 0:02:41]} b6 {[%emt 0:00:36]} 25. Bxc6 {[%emt 0:00:03]} Rxc6 {[%emt 0:00:02]} 26. Bb4 {[%emt 0:00:11]} Nxd4 {[%emt 0:02:00]} 27. Nxd4 {[%emt 0:00:08]} Qxd4 {[%emt 0:00:25]} 28. Qxd4 {[%emt 0:02:51]} Bxd4 {[%emt 0:00:01]} 29. Ra2 {[%emt 0:00:06]} Rc1+ {[%emt 0:06:39]} 30. Kh2 {[%emt 0:00:04]} Rxh1+ {[%emt 0:00:13]} 31. Kxh1 {[%emt 0:00:03]} Kf7 {[%emt 0:01:03]} 32. Rc2 {[%emt 0:04:12]} Kg6 {[%emt 0:01:46]} 33. g4 {[%emt 0:01:16]} Kxh6 {[%emt 0:01:21]} 34. Kg2 {[%emt 0:00:04]} Kg6 {[%emt 0:00:50]} 35. Kf3 {[%emt 0:00:51]} h5 {[%emt 0:02:31]} 36. gxh5+ {[%emt 0:00:11]} Kxh5 {[%emt 0:00:03]} 37. Ke4 {[%emt 0:00:07]} Rd8 {[%emt 0:04:45]} 38. f3 {[%emt 0:03:27]} Kg6 {[%emt 0:01:30]} 39. Rd2 {[%emt 0:06:51]} Bf6 {[%emt 0:01:29]} 40. Rxd8 {[%emt 0:00:44]} Bxd8 {[%emt 0:00:02]} 41. a4 {[%emt 0:03:45]} Bc7 {[%emt 0:02:05]} 42. Bd2 {[%emt 0:01:06]} Kh5 {[%emt 0:01:49]} 43. Be3 {[%emt 0:01:31]} g4 {[%emt 0:03:27]} 44. fxg4+ {[%emt 0:00:05]} Kxg4 {[%emt 0:00:02]} 45. Bxb6 {[%emt 0:00:26]} 1/2-1/2

[Event "BL 2017-18"]
[Site "Germany"]
[Date "2018.03.11"]
[Round "12"]
[White "Schmidek, Emil"]
[Black "Unzicker, Ferdinand"]
[Result "1-0"]
[ECO "B39"]
[WhiteElo "2387"]
[BlackElo "2323"]
[Annotator "NA"]
[PlyCount "77"]
[EventDate "2018.05.24"]
[EventType "team-tourn"]
[EventCountry "GER"]
[SourceTitle "playchess.com"]
[Source "ChessBase"]
[SourceQuality "1"]
[WhiteTeam "SFR Berlin"]
[BlackTeam "Bayern Muenchen"]
[TimeControl "40/6000+30:3000+30"]

1. e4 {[%emt 0:00:02]} c5 {[%emt 0:00:06]} 2. Nf3 {[%emt 0:00:08]} Nc6 {[%emt 0:00:04]} 3. d4 {[%emt 0:00:08]} cxd4 {[%emt 0:00:07]} 4. Nxd4 {[%emt 0:00:08]} g6 {[%emt 0:00:08]} 5. c4 {[%emt 0:00:06]} Bg7 {[%emt 0:00:05]} 6. Be3 {[%emt 0:00:07]} Nf6 {[%emt 0:00:08]} 7. Nc3 {[%emt 0:00:06]} Ng4 {[%emt 0:00:07]} 8. Qxg4 {[%emt 0:00:07]} Nxd4 {[%emt 0:00:05]} 9. Qd1 {[%emt 0:00:22]} Ne6 {[%emt 0:00:04]} 10. Rc1 {[%emt 0:00:13]} Qa5 {[%emt 0:00:20]} 11. Bd3 {[%emt 0:02:55]} b6 {[%emt 0:07:36]} 12. O-O {[%emt 0:01:59]} Bb7 {[%emt 0:00:07]} 13. a3 {[%emt 0:53:10]} Rc8 $16 {[%emt 0:33:44]} 14. Rc2 {[%emt 0:38:21]} d6 {[%emt 0:26:50]} 15. Nd5 {[%emt 0:03:07]} Qa4 {[%emt 0:00:27]} 16. Qe2 {[%emt 0:00:47]} Nd4 {[%emt 0:01:50]} 17. Bxd4 {[%emt 0:00:11]} Bxd4 {[%emt 0:00:02]} 18. c5 {[%emt 0:00:24]} Qa5 {[%emt 0:20:14]} 19. b4 {[%emt 0:00:56]} Qxa3 {[%emt 0:00:52]} 20. Ra2 {[%emt 0:00:13]} Qb3 {[%emt 0:00:37]} 21. Bc4 {[%emt 0:00:14]} Bxd5 {[%emt 0:00:24]} 22. Bxb3 {[%emt 0:00:11]} Bxb3 {[%emt 0:00:07]} 23. Rd2 {[%emt 0:04:34]} e5 {[%emt 0:03:48]} 24. Rxd4 {[%emt 0:02:00]} exd4 {[%emt 0:00:03]} 25. Qd3 {[%emt 0:00:08]} Be6 {[%emt 0:02:11]} 26. Qxd4 {[%emt 0:00:13]} O-O {[%emt 0:00:08]} 27. cxb6 {[%emt 0:00:40]} axb6 {[%emt 0:00:08]} 28. Qxb6 {[%emt 0:00:30]} Rfd8 {[%emt 0:00:51]} 29. h3 {[%emt 0:02:17]} Rb8 {[%emt 0:00:33]} 30. Qd4 {[%emt 0:00:07]} d5 {[%emt 0:00:29]} 31. Rd1 {[%emt 0:00:54]} Rd7 {[%emt 0:08:23]} 32. Qc5 {[%emt 0:00:32]} Rbd8 {[%emt 0:00:05]} 33. exd5 {[%emt 0:00:25]} Rxd5 {[%emt 0:00:08]} 34. Rxd5 {[%emt 0:00:05]} Rxd5 {[%emt 0:00:06]} 35. Qc6 {[%emt 0:00:26]} Rd1+ {[%emt 0:00:54]} 36. Kh2 {[%emt 0:00:02]} Bd7 {[%emt 0:00:12]} 37. Qb7 {[%emt 0:00:31]} Rd2 {[%emt 0:01:02]} 38. b5 {[%emt 0:00:26]} Bxb5 {[%emt 0:00:56]} 39. Qc8+ {[%emt 0:00:05]} 1-0

[Event "BL 2017-18"]
[Site "Germany"]
[Date "2018.03.11"]
[Round "12"]
[White "Gerigk, Erasmus"]
[Black "Moehn, Hans"]
[Result "0-1"]
[ECO "A34"]
[WhiteElo "2344"]
[BlackElo "2355"]
[Annotator "NA"]
[PlyCount "56"]
[EventDate "2018.05.24"]
[EventType "team-tourn"]
[EventCountry "GER"]
[SourceTitle "playchess.com"]
[Source "ChessBase"]
[SourceQuality "1"]
[WhiteTeam "Zugzwang Muenchen"]
[BlackTeam "Dresden"]
[TimeControl "40/6000+30:3000+30"]

1. e4 {[%emt 0:00:02]} c6 {[%emt 0:00:04]} 2. c4 {[%emt 0:00:11]} d5 {[%emt 0:00:05]} 3. cxd5 {[%emt 0:00:09]} cxd5 {[%emt 0:00:07]} 4. exd5 {[%emt 0:00:05]} Nf6 {[%emt 0:00:05]} 5. Nc3 {[%emt 0:00:20]} Nxd5 {[%emt 0:00:06] LiveBook: 1935 Games} 6. d4 {[%emt 0:00:47]} Nxc3 {[%emt 0:02:33]} 7. bxc3 {[%emt 0:00:17]} g6 {[%emt 0:00:17]} 8. Nf3 {[%emt 0:07:13]} Bg7 {[%emt 0:00:48]} 9. Be2 {[%emt 0:00:44]} O-O {[%emt 0:00:22]} 10. O-O {[%emt 0:00:32]} Qc7 {[%emt 0:06:11] A34: Symmetrical English: 2 Nc3, lines with ...d5} 11. Qb3 {[%emt 0:08:51]} Nc6 {[%emt 0:01:26]} 12. Bg5 {[%emt 0:03:00]} (12. Be3 Na5 13. Qb2 {½-½ (13) Fang,Y (2448)-Pikula,D (2456) Novi Sad 2016}) 12... Rd8 {[%emt 0:05:36]} 13. Rab1 $146 {[%emt 0:13:08]} ({Predecessor:} 13. Rfd1 Be6 14. Qa3 Rac8 15. Rac1 h6 16. Bd2 Na5 17. Re1 Bf8 18. Ne5 Bc4 19. Nxc4 Nxc4 20. Bxc4 Qxc4 21. Qxa7 {½-½ (60) Lugovskoy,M (2328)-Yarullina,A (2077) Sochi 2012}) 13... b6 {[%emt 0:08:52]} 14. Bh4 {[%emt 0:11:40]} Bb7 {[%emt 0:08:37]} 15. Rfe1 {[%emt 0:08:40]} Rd7 {[%emt 0:08:40]} 16. Bg3 {[%emt 0:14:28]} Qd8 {[%emt 0:01:14]} 17. h4 $15 {[%emt 0:09:57]} Rc8 {[%emt 0:08:49]} 18. Ng5 {[%emt 0:02:20]} e6 {[%emt 0:05:58]} 19. Bb5 {[%emt 0:02:57]} Bf6 {[%emt 0:15:45]} 20. Bf4 {[%emt 0:06:59]} Rd5 {[%emt 0:10:28]} 21. Bf1 {[%emt 0:05:18]} Na5 {[%emt 0:03:25]} 22. Qa3 {[%emt 0:01:22]} Rf5 {[%emt 0:01:45]} 23. Be3 {[%emt 0:07:52]} Be7 {[%emt 0:05:07]} 24. Qc1 {[%emt 0:00:35]} Nc4 {[%emt 0:00:19]} 25. Bd3 {[%emt 0:01:10]} Nxe3 {[%emt 0:00:58]} 26. fxe3 {[%emt 0:01:17]} Bxg5 {[%emt 0:00:56]} 27. Bxf5 {[%emt 0:01:28]} Bxh4 {[%emt 0:00:05]} 28. Bd3 {[%emt 0:00:44]} Bg3 {[%emt 0:00:51]} 0-1